bitfinex/quotes_ETHUSD_20250611
["timestamp","ask_amount","ask_price","bid_price","bid_amount"]
[1749672294851,0.84046873,2794.4,2793.8,4.521]
[1749672295083,0.84046873,2794.3,2793.8,4.521]
[1749672295386,0.84046873,2794.2,2793.7,4.521]
[1749672295655,1.39052378,2794.6,2793.7,4.517]
[1749672295656,0.84046873,2794.1,2793.7,4.517]
[1749672295812,0.8037,2794.3,2793.8,4.517]
[1749672296152,0.84044754,2794.2,2793.8,4.517]
[1749672296335,0.8037,2794.3,2793.5,10.0]
[1749672296336,0.84044754,2794.1,2793.5,10.0]
[1749672296535,0.8037,2794.3,2793.6,4.517]
[1749672296708,0.84033108,2794.2,2793.6,4.517]
[1749672296913,0.84033108,2794.1,2793.6,4.517]
[1749672297116,0.8037,2794.3,2793.4,0.778]
[1749672297350,0.84026719,2794.2,2793.5,4.504]
[1749672297654,0.84026719,2794.1,2793.5,4.504]
[1749672297828,0.84026719,2794.0,2793.5,4.9544]
[1749672298028,0.84017926,2793.9,2793.5,4.9544]
[1749672298334,0.8037,2794.3,2793.6,4.504]
[1749672298526,0.84021786,2794.2,2793.6,4.5]
[1749672298724,0.1784,2794.0,2793.5,0.1784]
[1749672298929,0.84021786,2793.9,2793.5,4.6764]
[1749672299119,0.1784,2794.0,2793.5,4.6764]
[1749672299320,0.84019696,2793.9,2793.5,4.6764]
[1749672299540,0.1784,2794.0,2793.5,4.6764]
[1749672299754,0.84021148,2793.9,2793.5,4.6764]
[1749672299957,0.1784,2794.0,2793.5,4.6694]
[1749672300275,0.84020763,2793.9,2793.5,0.1784]
[1749672300570,0.1784,2794.0,2793.5,0.1784]
[1749672300870,0.84014427,2793.9,2793.5,0.1784]
[1749672301064,0.1784,2794.0,2793.5,0.1784]
[1749672301263,0.84013571,2793.9,2793.5,0.1784]
[1749672301570,0.1784,2794.0,2793.5,0.1784]
[1749672301731,0.84028598,2793.9,2793.5,0.1784]
[1749672302037,0.8037,2794.3,2793.4,4.479]
[1749672302243,0.1784,2794.0,2793.5,0.1784]
[1749672302450,0.8246,2793.8,2793.5,0.1784]
[1749672302755,0.8246,2793.8,2793.2,1.21235753]
[1749672302756,0.8246,2793.6,2793.2,1.21235753]
[1749672302959,0.55,2793.3,2793.2,1.21235753]
[1749672303268,0.55,2793.3,2791.7,1.491]
[1749672303269,0.7788,2793.1,2791.7,1.491]
[1749672303578,0.7788,2792.8,2791.7,1.491]
[1749672303731,0.83998956,2792.7,2791.7,5.968]
[1749672303935,0.83998956,2792.6,2791.8,0.5968]
[1749672304151,0.83998956,2792.5,2791.8,4.475]
[1749672304345,0.83998956,2792.5,2791.5,0.8113]
[1749672304346,0.8115,2792.3,2791.2,7.0026]
[1749672304689,0.8115,2792.3,2791.2,10.648]
[1749672304690,0.83998956,2792.2,2791.2,10.648]
[1749672304852,0.83998956,2792.1,2791.2,6.179]
[1749672305043,0.8115,2791.9,2790.9,1.496]
[1749672305234,0.83998956,2791.8,2790.9,1.496]
[1749672305436,0.83998956,2791.7,2790.9,1.496]
[1749672305673,0.83742447,2791.6,2790.9,0.005]
[1749672305976,0.8115,2791.4,2790.9,0.005]
[1749672306377,0.8115,2791.8,2790.9,0.005]
[1749672306589,0.8103,2791.3,2790.9,0.005]
[1749672306892,0.83722736,2791.2,2790.9,0.005]
[1749672307200,0.83722736,2791.1,2790.9,0.005]
[1749672307374,0.83722736,2791.0,2790.9,0.005]
[1749672307561,0.8103,2791.2,2790.9,0.005]
[1749672307975,0.83722736,2791.5,2790.9,0.005]
[1749672308190,1.64752736,2792.4,2791.3,10.13937086]
[1749672308483,0.8103,2792.4,2791.6,10.13937086]
[1749672308686,0.8103,2792.4,2791.1,0.766]
[1749672308888,0.8103,2792.4,2791.1,4.457]
[1749672309101,0.8103,2792.4,2791.2,0.4457]
[1749672309388,0.55,2792.2,2791.2,0.4457]
[1749672309688,1.63682736,2792.1,2790.9,0.005]
[1749672309903,1.38722736,2792.0,2790.9,0.005]
[1749672310067,0.7996,2791.7,2790.9,0.005]
[1749672310269,0.55,2791.6,2790.9,0.005]
[1749672310960,10.0,2792.0,2790.9,0.005]
[1749672310961,0.83722736,2791.8,2790.9,0.005]
[1749672311165,0.7585,2791.5,2790.9,0.005]
[1749672312776,0.9369,2791.5,2791.0,0.1784]
[1749672313703,0.18539787,2791.4,2791.0,0.1784]
[1749672314463,0.1784,2791.8,2791.3,0.1784]
[1749672314668,0.18535994,2791.4,2791.3,0.1784]
[1749672314881,0.1784,2791.8,2791.3,0.1784]
[1749672315413,0.18534162,2791.5,2791.3,0.1784]
[1749672315797,0.18534162,2791.5,2790.7,4.434]
[1749672315798,0.55,2791.1,2789.9,7.30716253]
[1749672316014,0.55,2791.3,2789.9,7.30716253]
[1749672316015,11.3643,2790.8,2789.9,7.30716253]
[1749672316188,0.1792,2790.2,2789.9,7.30716253]
[1749672317013,0.1784,2790.4,2789.9,7.48636253]
[1749672317530,0.55,2790.7,2789.9,7.30716253]
[1749672317747,0.1792,2790.2,2789.9,7.30716253]
[1749672318239,0.8143,2790.1,2789.9,7.30716253]
[1749672318445,17.13342867,2790.1,2790.0,156.35973296]
[1749672318598,11.38063238,2790.1,2790.0,99.74235934]
[1749672318798,27.66224252,2790.1,2790.0,99.49235934]
[1749672319015,33.3163691,2790.1,2790.0,99.49235934]
[1749672319307,33.89334344,2790.1,2790.0,56.3362016]
[1749672319499,33.89334344,2790.1,2790.0,47.88621957]
[1749672319699,33.89334344,2790.1,2790.0,46.09657446]
[1749672319900,53.23403644,2790.1,2790.0,32.56380743]
[1749672320139,32.46134344,2790.1,2790.0,30.77416232]
[1749672320309,48.30167044,2790.1,2790.0,9.86236885]
[1749672320513,54.90175208,2790.1,2790.0,2.67209007]
[1749672320701,55.52459743,2790.1,2790.0,1.78298316]
[1749672320896,41.78140739,2790.0,2789.9,7.30716253]
[1749672321136,10.0,2789.9,2789.1,0.04]
[1749672321337,0.83063238,2790.0,2789.1,0.04]
[1749672321338,10.55,2789.4,2789.1,0.04]
[1749672322339,11.37392833,2789.4,2789.1,0.04]
[1749672322526,14.95897744,2789.4,2789.1,0.04]
[1749672322834,10.55,2789.2,2789.1,0.04]
[1749672323239,4.445,2789.3,2789.1,0.04]
[1749672323604,1.00932395,2790.1,2789.1,0.04]
[1749672323804,0.18539562,2790.1,2789.1,0.04]
[1749672324028,0.18539562,2790.1,2789.2,10.58797086]
[1749672324534,1.3746125,2791.9,2790.0,10.90687086]
[1749672324735,2.88607304,2792.1,2790.5,10.13937086]
[1749672324736,0.18521726,2790.9,2790.5,10.13937086]
[1749672324962,0.18521726,2790.9,2790.2,14.58737086]
[1749672325135,5.77998282,2792.2,2790.2,16.26725795]
[1749672325136,4.95605449,2792.2,2790.2,16.26725795]
[1749672325335,0.18520836,2790.9,2790.2,16.26725795]
[1749672325662,18.99187603,2792.1,2790.2,1.67988709]
[1749672325803,0.1852156,2790.9,2789.3,0.7518]
[1749672326008,0.1852156,2790.9,2789.5,10.13937086]
[1749672326303,12.19854083,2790.8,2789.1,0.04]
[1749672326507,0.55,2790.6,2789.1,0.04]
[1749672326809,10.0,2790.4,2789.1,0.04]
[1749672327246,0.55,2790.3,2789.1,0.04]
[1749672327561,1.37392833,2790.3,2789.1,0.04]
[1749672328480,0.1792,2789.5,2789.1,0.04]
[1749672328749,0.1792,2789.3,2789.1,0.04]
[1749672329053,0.1792,2789.9,2789.4,0.1792]
[1749672329341,0.1792,2790.2,2789.7,0.1792]
[1749672329518,1.00738948,2790.2,2789.7,0.1792]
[1749672329717,0.1792,2790.2,2789.7,0.1792]
[1749672329938,0.82821222,2790.1,2789.1,0.04]
[1749672330123,1.3746125,2790.5,2789.1,0.70858]
[1749672330326,2.06214471,2790.7,2789.4,0.1792]
[1749672330327,0.1792,2789.9,2789.4,0.1792]
[1749672333573,0.83093446,2790.1,2789.2,1.17992]
[1749672333772,0.83093446,2790.0,2789.3,0.7711]
[1749672333978,0.83093446,2789.9,2789.3,0.7711]
[1749672334144,0.83093446,2789.8,2789.3,0.970202]
[1749672334342,0.83093446,2789.7,2789.3,0.970202]
[1749672334545,1.3746125,2790.2,2789.3,0.970202]
[1749672334746,0.83196431,2790.1,2789.3,0.970202]
[1749672334940,0.83196431,2790.0,2789.1,0.04]
[1749672335175,0.83196431,2790.0,2788.1,0.04]
[1749672335176,10.0,2789.4,2788.1,0.04]
[1749672335383,1.38599177,2788.7,2788.1,0.04]
[1749672335542,2.21795608,2788.6,2788.1,0.04]
[1749672335742,2.74884535,2789.2,2788.1,0.04]
[1749672335743,0.83196431,2788.5,2788.1,0.04]
[1749672335939,0.83196431,2788.4,2788.1,0.04]
[1749672336182,1.38599177,2788.7,2788.1,0.04]
[1749672336183,0.83196431,2788.3,2788.1,0.04]
[1749672336379,0.83196431,2788.2,2788.1,0.04]
[1749672340451,0.83196431,2788.2,2788.1,0.8309]
[1749672340650,1.38599177,2788.8,2788.1,2.08991]
[1749672340851,0.8323356,2788.7,2788.1,2.08991]
[1749672341066,0.8323356,2788.6,2788.1,2.08991]
[1749672341270,0.83209424,2788.5,2788.2,0.665491]
[1749672341464,1.04023721,2788.8,2788.2,0.665491]
[1749672341665,0.8321749,2788.7,2788.2,0.665491]
[1749672341866,0.8321749,2788.6,2788.2,0.665491]
[1749672342093,0.8321749,2788.5,2788.1,2.08991]
[1749672342306,0.8321749,2788.4,2788.1,0.8309]
[1749672342471,1.04023721,2788.8,2788.1,0.8309]
[1749672342668,0.83268619,2788.7,2788.3,0.1792]
[1749672342874,0.83268619,2788.7,2788.1,0.8309]
[1749672342875,0.83268619,2788.6,2788.1,10.8309]
[1749672343071,1.04023721,2789.0,2788.6,0.1792]
[1749672343276,0.83278801,2788.9,2788.7,0.7783]
[1749672343462,0.83278801,2788.8,2788.7,0.7783]
[1749672343871,0.83278801,2788.8,2788.7,0.9575]
[1749672344461,1.87302522,2788.8,2788.7,0.9575]
[1749672345166,0.83278801,2788.8,2788.7,0.9575]
[1749672345361,1.87302522,2788.8,2788.7,0.9575]
[1749672345598,0.83278801,2788.8,2788.7,0.9575]
[1749672346308,2.21877978,2788.8,2788.7,0.9575]
[1749672346486,0.83278801,2788.8,2788.7,0.9575]
[1749672346800,2.22420526,2788.8,2788.7,0.9575]
[1749672347503,0.83278801,2788.8,2788.7,0.9575]
[1749672347870,2.91177567,2788.8,2788.2,0.8142]
[1749672348081,1.3916725,2788.6,2788.5,0.1792]
[1749672348283,2.22446051,2788.6,2788.5,0.1792]
[1749672348715,1.87654571,2788.6,2788.5,0.1792]
[1749672349040,0.83278801,2788.6,2788.5,0.1792]
[1749672350615,0.83278801,2788.6,2788.5,1.21424243]
[1749672350817,0.18535301,2789.2,2788.5,1.21424243]
[1749672350818,1.0437577,2788.8,2788.5,15.57410283]
[1749672351021,2.26434067,2789.2,2788.5,15.57410283]
[1749672351022,1.0437577,2789.2,2788.7,10.17122427]
[1749672351221,1.0437577,2789.2,2788.8,1.01712243]
[1749672351521,1.0437577,2789.2,2789.1,0.1792]
[1749672351707,1.0437577,2789.3,2789.1,0.1792]
[1749672352020,1.0437577,2789.2,2789.1,0.1792]
[1749672352196,1.0437577,2789.3,2789.1,0.1792]
[1749672353319,1.0437577,2789.4,2789.1,0.1792]
[1749672353709,1.0437577,2789.4,2788.8,1.01712243]
[1749672353710,1.0437577,2789.4,2789.3,0.1792]
[1749672354430,1.0437577,2789.6,2789.3,0.1792]
[1749672354581,0.18526918,2789.7,2789.3,0.1792]
[1749672354582,1.22902688,2789.7,2789.3,0.1792]
[1749672354918,1.22902688,2789.7,2789.5,0.1792]
[1749672355437,0.18526918,2789.7,2789.5,0.1792]
[1749672355583,1.22902688,2789.7,2789.5,0.1792]
[1749672355992,1.0437577,2789.8,2789.5,0.1792]
[1749672356396,1.0437577,2789.8,2789.7,0.1792]
[1749672356637,1.3916725,2789.9,2789.2,0.8256]
[1749672356792,1.04642823,2789.7,2789.4,0.1792]
[1749672357142,0.18521907,2790.0,2789.2,0.8256]
[1749672357143,1.04642823,2789.8,2789.2,10.99682427]
[1749672357294,1.04642823,2789.8,2789.7,0.1792]
[1749672357495,1.57689157,2790.0,2789.7,0.1792]
[1749672357496,1.2316473,2790.0,2789.7,0.1792]
[1749672357732,1.04642823,2790.2,2789.7,0.1792]
[1749672357938,2.74884535,2790.9,2789.6,10.17122427]
[1749672357939,1.04642823,2790.4,2789.9,0.1792]
[1749672358095,1.04642823,2790.4,2790.2,0.1784]
[1749672358495,1.5700725,2790.6,2790.2,0.1784]
[1749672358496,1.04642823,2790.5,2790.2,0.1784]
[1749672359545,0.1784,2790.6,2790.2,0.1784]
[1749672360395,0.1784,2790.6,2789.8,5.2251]
[1749672360396,1.04642823,2790.7,2789.9,10.17122427]
[1749672360596,1.23161916,2790.8,2790.5,0.1784]
[1749672360942,0.18519093,2790.8,2790.5,0.1784]
[1749672361713,0.18519093,2790.8,2790.6,0.7621]
[1749672362047,1.0,2791.0,2790.7,0.1784]
[1749672362248,1.0,2791.0,2790.9,10.17122427]
[1749672362421,1.0,2791.0,2790.9,10.34962427]
[1749672362625,1.0,2791.0,2790.9,14.78062427]
[1749672362825,0.18503417,2791.8,2790.9,15.59182427]
[1749672363121,0.1784,2792.7,2791.7,10.98242427]
[1749672363334,0.83631107,2793.4,2792.4,10.17122427]
[1749672363534,0.83631107,2793.8,2792.7,10.34962427]
[1749672363741,0.1784,2793.4,2792.7,10.34962427]
[1749672363939,0.1784,2793.4,2792.7,10.17122427]
[1749672364143,0.1784,2793.5,2793.0,0.1784]
[1749672364540,0.18487835,2793.6,2793.0,14.59322427]
[1749672364755,0.18487835,2793.6,2792.5,0.8112]
[1749672364964,0.1784,2793.1,2792.5,0.1784]
[1749672365515,0.1784,2793.0,2792.5,0.1784]
[1749672365865,0.1784,2792.7,2792.2,0.1784]
[1749672367033,10.0,2793.2,2791.7,0.811]
[1749672367232,0.1784,2792.2,2791.7,0.1784]
[1749672368046,0.36023843,2792.5,2791.2,0.811]
[1749672368253,0.1784,2791.8,2791.3,0.1784]
[1749672368816,14.95,2792.2,2790.0,0.7983]
[1749672369029,11.8827393,2792.2,2790.3,10.17122427]
[1749672369247,10.0,2792.0,2790.4,0.29916234]
[1749672369549,1.8827393,2792.2,2790.4,0.29916234]
[1749672369730,1.3916725,2792.4,2791.1,10.17122427]
[1749672369731,1.04642823,2792.4,2791.1,10.17122427]
[1749672369930,0.35098389,2792.5,2791.1,10.47031158]
[1749672370230,5.45242823,2792.8,2791.1,11.95794274]
[1749672370415,1.04642823,2792.9,2791.2,0.2990766]
[1749672370754,0.35091234,2792.9,2791.4,10.17122427]
[1749672370958,1.04642823,2793.2,2792.0,10.17122427]
[1749672371248,0.35062611,2793.4,2792.1,0.8062]
[1749672371450,1.23136354,2793.9,2792.3,10.17122427]
[1749672371652,4.62578251,2793.8,2792.2,4.399]
[1749672371827,2.06767461,2793.9,2792.4,10.17122427]
[1749672372029,2.06767461,2793.9,2792.2,4.399]
[1749672372030,0.18493531,2793.9,2792.7,10.17122427]
[1749672372233,0.18493531,2793.9,2792.8,5.1933]
[1749672372654,114.0,2792.9,2792.8,0.7953]
[1749672373231,114.0,2792.9,2792.8,10.96652427]
[1749672373555,92.27862165,2792.9,2792.8,22.0631767]
[1749672374453,91.44532165,2792.9,2792.8,0.7953]
[1749672374634,91.44532165,2792.9,2790.2,1.7495126]
[1749672374635,91.44532165,2792.9,2792.4,0.7734]
[1749672374832,91.44532165,2792.9,2791.8,4.391]
[1749672375231,91.44532165,2792.9,2791.6,0.7734]
[1749672375445,91.44532165,2792.9,2791.7,4.389]
[1749672375652,91.44532165,2792.9,2791.7,5.93514445]
[1749672375823,91.44532165,2792.9,2791.8,11.73457287]
[1749672378255,91.44532165,2792.9,2792.6,11.73457287]
[1749672378421,91.44532165,2792.9,2792.6,16.11057287]
[1749672378620,91.44532165,2792.9,2792.7,10.0]
[1749672378924,91.44532165,2792.9,2792.8,2.64607079]
[1749672379126,91.44532165,2792.9,2792.8,2.82447079]
[1749672379526,91.44532165,2792.9,2792.8,21.55800671]
[1749672379770,86.89204969,2792.9,2792.8,17.97737079]
[1749672379950,86.89204969,2792.9,2792.8,19.37137079]
[1749672380737,82.11360264,2792.9,2792.8,22.95200671]
[1749672381142,73.54316965,2792.9,2792.8,22.95200671]
[1749672381550,73.54316965,2792.9,2792.8,13.60937079]
[1749672381753,73.54316965,2792.9,2792.8,17.96937079]
[1749672382926,73.54316965,2792.9,2792.8,13.60937079]
[1749672383161,73.54316965,2792.9,2792.8,10.9633]
[1749672383365,73.54316965,2792.9,2792.8,15.3163]
[1749672384165,73.54316965,2792.9,2792.8,4.5284]
[1749672385168,73.54316965,2792.9,2792.8,5.2797]
[1749672385372,73.54316965,2792.9,2792.8,8.86033592]
[1749672385568,73.54316965,2792.9,2792.8,11.9548403]
[1749672385773,57.19737672,2792.9,2792.8,11.9548403]
[1749672385936,14.90954399,2792.9,2792.8,8.86033592]
[1749672386535,1.04642823,2794.9,2794.1,3.57896402]
[1749672386731,1.04642823,2795.4,2794.6,11.73457287]
[1749672386971,1.04642823,2795.4,2794.3,10.0]
[1749672386972,1.04642823,2795.7,2795.0,11.73457287]
[1749672387172,2.07898766,2796.1,2795.0,1.17345729]
[1749672387173,1.04642823,2796.1,2795.0,1.17345729]
[1749672387470,1.04642823,2796.1,2794.0,9.947]
[1749672387471,1.8774284,2796.0,2794.5,4.848]
[1749672387680,0.1784,2795.5,2794.5,4.849]
[1749672387898,0.83100017,2795.4,2794.8,0.1784]
[1749672388171,0.83100017,2795.4,2794.3,0.35909557]
[1749672388172,1.3916725,2795.0,2793.8,5.1574]
[1749672388375,1.3916725,2795.0,2793.6,0.36049018]
[1749672388376,1.03854505,2794.6,2793.7,4.337]
[1749672388696,0.83100017,2794.5,2793.7,4.337]
[1749672388863,1.03854505,2794.8,2793.7,4.337]
[1749672389180,1.03854505,2795.1,2794.1,13.57892513]
[1749672389336,0.83132726,2795.0,2794.2,16.84827287]
[1749672389668,0.83208297,2794.9,2794.2,16.84827287]
[1749672389878,0.18774284,2795.3,2794.7,10.0]
[1749672389879,1.03854505,2795.3,2794.7,10.0]
[1749672390034,0.766,2795.6,2794.8,4.336]
[1749672390035,0.83195087,2795.2,2794.8,4.336]
[1749672390230,1.80454505,2795.6,2794.8,4.336]
[1749672390452,0.83148468,2795.5,2794.9,10.0]
[1749672390634,1.03854505,2795.8,2794.9,10.0]
[1749672390635,1.03854505,2795.8,2794.9,10.7777]
[1749672390852,0.83156067,2795.7,2794.9,10.7777]
[1749672391052,0.83156067,2795.6,2794.9,10.7777]
[1749672391253,0.83156067,2795.5,2794.9,10.7777]
[1749672391455,0.766,2796.0,2795.1,10.0]
[1749672391456,1.03854505,2795.8,2795.1,10.0]
[1749672391678,0.83164465,2795.7,2795.2,4.329]
[1749672391831,0.83164465,2795.6,2795.2,4.329]
[1749672392035,11.73457287,2795.3,2793.4,0.8302]
[1749672392240,1.03854505,2794.3,2793.4,0.8302]
[1749672392488,0.813,2794.6,2793.4,0.8302]
[1749672392489,1.87011798,2794.2,2793.4,0.8302]
[1749672392771,1.87011798,2794.2,2792.9,4.337]
[1749672392772,1.03854505,2794.0,2793.1,4.345]
[1749672393074,1.87011798,2793.9,2793.1,4.64287315]
[1749672393279,0.83157293,2793.8,2793.1,4.64287315]
[1749672393484,0.83157293,2793.7,2793.1,4.64287315]
[1749672393774,3.56184535,2794.6,2793.1,4.64287315]
[1749672393775,0.83157293,2793.6,2793.1,4.64287315]
[1749672393978,1.03854505,2793.9,2793.2,5.738]
[1749672394272,1.03854505,2793.9,2793.3,11.73457287]
[1749672394273,0.83135283,2793.8,2793.3,11.73457287]
[1749672394579,1.03854505,2794.3,2793.4,10.0]
[1749672394873,0.83147635,2794.2,2793.5,0.8302]
[1749672395059,0.83147635,2794.1,2793.6,4.337]
[1749672395261,0.83147635,2794.0,2793.5,0.8302]
[1749672395477,0.83147635,2794.0,2793.0,3.58032242]
[1749672395478,0.83142556,2793.9,2793.1,1.08487315]
[1749672395778,0.83142556,2793.8,2793.4,1.395]
[1749672396078,0.83142556,2793.7,2793.4,1.395]
[1749672396275,1.1605324,2793.6,2793.4,1.395]
[1749672396440,1.03854505,2793.9,2793.4,1.395]
[1749672396639,0.8317258,2793.8,2793.4,1.395]
[1749672396874,1.16085534,2793.7,2793.4,1.9679]
[1749672397171,1.03854505,2794.0,2793.4,1.395]
[1749672397490,0.83187888,2793.9,2793.4,13.12957287]
[1749672397677,0.813,2794.6,2793.4,13.12957287]
[1749672397678,1.03854505,2794.2,2793.4,13.12957287]
[1749672397865,0.83192203,2794.1,2793.4,1.395]
[1749672398064,0.83192203,2794.0,2793.4,1.395]
[1749672398269,0.83192203,2793.9,2793.4,1.395]
[1749672398447,0.83192203,2793.8,2793.5,5.716]
[1749672398648,0.18704671,2794.0,2793.9,0.1784]
[1749672398847,1.01967344,2794.0,2793.9,0.1784]
[1749672399052,2.05821849,2794.0,2793.9,0.1784]
[1749672400195,2.20043232,2794.0,2793.9,0.1784]
[1749672400491,2.20043539,2794.0,2793.9,0.1784]
[1749672400649,2.20042406,2794.0,2793.9,0.1784]
[1749672400849,1.16187316,2794.0,2793.9,0.1784]
[1749672401174,1.16189084,2794.0,2793.9,0.1784]
[1749672401485,1.87634518,2794.0,2793.9,0.1784]
[1749672402050,1.16195941,2794.0,2793.9,0.1784]
[1749672402379,0.83262673,2794.0,2793.9,0.1784]
[1749672402761,0.83544979,2794.0,2793.9,0.1784]
[1749672403352,1.16493597,2794.0,2793.9,0.1784]
[1749672403644,0.83544979,2794.0,2793.9,0.1784]
[1749672403886,1.16503788,2794.0,2793.9,0.1784]
[1749672404057,0.83544979,2794.0,2793.9,0.1784]
[1749672404261,0.83544979,2794.0,2793.9,1.0056]
[1749672404585,1.04431224,2794.6,2793.9,1.0056]
[1749672404793,1.16493238,2794.5,2794.0,4.292]
[1749672404952,0.83601649,2794.4,2794.0,4.292]
[1749672405171,0.83601649,2794.3,2794.0,4.292]
[1749672405367,0.83601649,2794.2,2794.0,4.292]
[1749672405568,1.04431224,2794.5,2794.2,0.1784]
[1749672405774,0.83623584,2794.4,2794.1,5.631]
[1749672406016,0.83623584,2794.3,2794.1,5.631]
[1749672406313,0.83623584,2794.2,2794.1,5.631]
[1749672406698,0.83623584,2794.2,2794.1,5.8094]
[1749672408104,0.83623584,2794.2,2794.1,0.1784]
[1749672408399,0.83623584,2794.2,2794.1,4.4534]
[1749672410391,1.16543665,2794.2,2794.1,4.4534]
[1749672410711,1.1654732,2794.2,2794.1,4.4534]
[1749672410911,0.83623584,2794.2,2794.1,4.4534]
[1749672411111,1.16546697,2794.2,2794.1,4.4534]
[1749672411409,1.16547174,2794.2,2794.1,4.4534]
[1749672411610,0.83623584,2794.2,2794.1,4.4534]
[1749672412980,1.04431224,2794.7,2794.1,14.4534]
[1749672413179,0.83912298,2794.6,2794.1,14.4534]
[1749672413381,1.80931224,2794.9,2794.6,0.1784]
[1749672413582,0.83932327,2794.8,2794.6,0.1784]
[1749672413797,0.83932327,2794.7,2794.4,4.245]
[1749672413997,0.765,2794.9,2794.7,0.1784]
[1749672414227,0.83935366,2794.8,2794.7,0.1784]
[1749672414383,0.83935366,2794.8,2794.5,10.0]
[1749672414578,1.04431224,2795.4,2794.7,10.1784]
[1749672414820,0.83976296,2795.3,2794.8,4.239]
[1749672415004,1.80391224,2795.7,2795.3,0.1784]
[1749672415210,1.3916725,2795.9,2795.2,4.239]
[1749672415211,0.84012615,2795.6,2795.2,4.239]
[1749672415393,1.04431224,2795.9,2795.6,0.1784]
[1749672415595,0.83985365,2795.8,2795.6,0.1784]
[1749672415795,0.83985365,2795.7,2795.0,4.236]
[1749672415995,0.83985365,2795.6,2795.5,0.1784]
[1749672417495,0.26437659,2795.8,2795.5,0.1784]
[1749672417724,0.83939169,2795.7,2795.3,0.1784]
[1749672418035,0.44277659,2795.8,2795.3,0.1784]
[1749672418036,0.83939169,2795.6,2795.3,0.1784]
[1749672418207,0.83939169,2795.6,2794.3,0.51]
[1749672418208,0.7987,2795.4,2794.3,0.51]
[1749672418407,0.7987,2795.4,2794.2,0.8085]
[1749672418408,0.83939169,2795.3,2794.9,0.1784]
[1749672418631,0.83939169,2795.2,2795.1,0.1784]
[1749672419521,0.7987,2795.4,2794.4,6.15725]
[1749672419726,1.16985732,2795.3,2794.9,0.1784]
[1749672419898,0.83968538,2795.2,2794.9,0.1784]
[1749672420238,0.9771,2795.4,2794.9,0.1784]
[1749672420239,0.33017236,2795.3,2794.9,0.1784]
[1749672420416,0.83972995,2795.2,2794.9,0.1784]
[1749672420611,1.20250603,2795.4,2794.9,0.1784]
[1749672420829,0.83973084,2795.3,2794.9,0.1784]
[1749672421123,1.20250603,2795.4,2794.2,0.8085]
[1749672421124,0.83973084,2795.2,2794.3,4.218]
[1749672421323,1.01813084,2795.1,2794.6,0.1784]
[1749672421532,0.29081491,2795.2,2794.3,4.213]
[1749672421827,0.83988218,2795.1,2794.8,0.1784]
[1749672422026,0.1784,2795.3,2794.8,0.1784]
[1749672422225,1.17022258,2795.2,2794.8,0.1784]
[1749672422424,0.23727286,2795.2,2794.8,0.1784]
[1749672422625,0.83960146,2795.1,2794.2,1.299]
[1749672422824,1.16949398,2795.0,2794.2,1.299]
[1749672423137,1.16929363,2794.9,2794.2,1.299]
[1749672423337,0.23727286,2795.2,2794.2,1.299]
[1749672423638,0.83937523,2795.1,2794.2,1.299]
[1749672423860,0.83937523,2795.0,2794.2,1.299]
[1749672424060,0.32974081,2794.9,2794.2,1.299]
[1749672424220,0.23727286,2795.2,2794.2,1.299]
[1749672424420,0.83992802,2795.1,2794.2,1.299]
[1749672424626,0.83992802,2795.0,2794.3,11.07769616]
[1749672424921,1.0129,2795.8,2794.6,13.71250479]
[1749672425147,0.84058496,2795.7,2794.8,10.0]
[1749672425371,1.99011224,2796.2,2795.0,10.0]
[1749672425529,1.99011224,2796.2,2795.5,10.0]
[1749672425530,0.8406516,2796.1,2795.5,10.0]
[1749672425743,0.9458,2796.6,2795.8,20.13419616]
[1749672425937,1.3916725,2797.1,2795.8,20.13419616]
[1749672425938,0.84009524,2796.8,2795.8,20.13419616]
[1749672426139,1.0502626,2797.2,2796.2,11.0162]
[1749672426344,0.84021268,2797.1,2796.2,1.0162]
[1749672426632,0.84021268,2797.0,2796.2,4.197]
[1749672426834,0.83924614,2797.2,2796.2,4.197]
[1749672427038,1.04105419,2797.1,2796.2,4.197]
[1749672427237,0.20180805,2797.1,2796.2,4.197]
[1749672428080,1.4,2797.0,2796.2,4.197]
[1749672428379,1.4,2797.0,2795.9,1.0162]
[1749672428573,2.2385998,2797.0,2796.1,4.192]
[1749672429081,0.20180805,2797.1,2795.6,6.36558068]
[1749672429486,0.20180805,2797.1,2795.6,16.49977684]
[1749672429781,1.7816998,2797.0,2795.6,6.36558068]
[1749672430330,0.9431,2797.0,2795.6,6.36558068]
[1749672430841,0.9431,2797.0,2795.6,2.17558068]
[1749672431042,1.0052,2796.9,2795.7,4.182]
[1749672431661,1.0052,2796.8,2795.2,0.9895]
[1749672431984,10.97279596,2796.9,2795.1,10.0]
[1749672431985,1.0052,2796.6,2795.1,10.0]
[1749672432148,1.0052,2796.6,2795.1,20.13419616]
[1749672432629,0.1784,2796.5,2796.0,0.1784]
[1749672432973,1.0052,2796.6,2795.8,10.0]
[1749672433270,1.0052,2796.6,2796.4,0.1784]
[1749672434572,0.9562,2796.9,2796.5,0.1784]
[1749672435175,0.32995965,2796.8,2796.5,0.1784]
[1749672435334,0.9562,2796.9,2796.5,0.1784]
[1749672435751,0.1784,2797.0,2796.5,0.1784]
[1749672435987,0.32997684,2796.9,2796.5,0.1784]
[1749672436188,0.934,2797.2,2796.7,0.1784]
[1749672436189,1.1124,2797.2,2796.7,0.1784]
[1749672437029,0.32985889,2797.1,2796.7,0.1784]
[1749672437238,0.3605391,2797.5,2796.7,1.03125962]
[1749672437538,0.934,2797.6,2796.7,6.19785962]
[1749672437766,0.32979522,2797.5,2796.7,6.19785962]
[1749672438068,0.934,2797.6,2796.7,6.19785962]
[1749672438283,0.934,2797.6,2796.8,0.61978596]
[1749672438496,0.9485,2797.8,2796.8,0.61978596]
[1749672438690,0.9485,2797.8,2796.5,4.162]
[1749672439234,0.32981578,2797.7,2796.5,4.162]
[1749672439462,0.32982112,2797.6,2796.5,4.162]
[1749672439672,0.32981517,2797.5,2796.5,4.162]